Workbook

Sheet Static Quake X
B3: =X!F3 -> محاسبه ضريب زلزله در جهت X
B6: =X!F6 -> نسبت شتاب مبنای طرح به شتاب ثقل | D6: =X!H6 -> استان | G6: =X!K6 -> مرکز جمعیتی
D7: =X!H7 -> اصفهان | G7: =X!K7 -> اصفهان
D8: =X!H8 -> پهنه با خطر نسبي متوسط | G8: =X!K8 -> منطقه 3 | I8: =X!M8 -> 0.25
B9: =X!F9 -> ضريب اهميت ساختمان | D9: =X!H9 -> ساختمان با اهميت متوسط | I9: =X!M9 -> 1
B12: =X!F12 -> ضريب رفتار سازه
B13: =X!F13 -> سيستم سازه | D13: =X!H13 -> سيستم مقاوم در برابر نيروهاي جانبي
B14: =X!F14 -> دوگانه یا ترکیبی | D14: =X!H14 -> قاب خمشی بتن ارمه متوسط + دیوار برشی بتن آرمه متوسط | I14: =X!M14 -> 6
B15: =IF(AND(I8=0.35,I9=1.4),IF(ISNUMBER(SEARCH("ویژه",D14)),IF(E20<=D15,""," Hm < H"),"فقط ویژه"),IF(D15="-",IF(OR(AND(D15="-",OR(I8=0.3,I8=0.35),I9=1),AND(D15="-",OR(I9=1.2,I9=1.4))),"مجاز نیست",IF(E20<=15,""," Hm < H")),IF(E20<=D15,""," Hm < H"))) ->  | D15: =X!H15 -> 50 | F15: =X!J15 -> 4.5 | H15: =X!L15 -> 2.5
H16: =X!L16 -> 
C17: =X!G17 -> 
H18: =X!L18 -> 
B19: =X!F19 -> ضريب بازتاب سازه B
B20: =X!F20 -> ارتفاع ساختمان از تراز پايه | E20: 13 | F20: =X!J20 -> نوع زمين | G20: III
B21: =X!F21 -> سازه میانقاب دارد؟ | D21: خیر | E21: =X!I21 -> نوع سيستم | G21: سیستم دوگانه
C22: =X!G22 -> 0.15 | E22: =X!I22 -> زمان تناوب اصلی با استفاده از روابط تجربی | G22: =X!K22 -> T=0.05xH^0.75= | I22: =X!M22 -> 0.3423162521
C23: =X!G23 -> 0.7
C24: =X!G24 -> 1.75 | F24: =X!J24 -> Min (تحلیلی، 1.25تجربی)= | I24: =X!M24 -> 0.4278953151
C25: =X!G25 -> 1.1
B26: =X!F26 -> زمان تناوب نرم افزار | D26: 0.79
B27: =X!F27 -> ضریب اصلاح طیف | D27: =X!H27 -> N=1= | F27: =X!J27 -> 1 | I27: =X!M27 -> 2.75
B28: =X!F28 -> ضریب شکل طیف | D28: =X!H28 -> B1=1+S= | F28: =X!J28 -> 2.75
D31: =X!H31 -> 0.03 | F31: =X!J31 -> K=1= | H31: =X!L31 -> 1
D32: =X!H32 -> 0.1026371308 | H32: =X!L32 -> 1.145
G36: =X!K36 -> 0.1145833333

Sheet X (hidden)
F3: محاسبه ضريب زلزله در جهت X
F6: نسبت شتاب مبنای طرح به شتاب ثقل | H6: استان | K6: مرکز جمعیتی
C7: 4 | H7: =INDEX('Spectrum Functions'!AAE2:AAE31,X!C7,1) -> اصفهان | K7: =INDEX('Spectrum Functions'!AAF2:ABI90,C8,C7) -> اصفهان
C8: 7 | H8: =IFERROR(INDEX(J47:L50,MATCH(M8,I47:I50,0),1),"") -> پهنه با خطر نسبي متوسط | K8: =IFERROR(INDEX(M47:M50,MATCH(M8,I47:I50,0),1),"") -> منطقه 3 | M8: =IFERROR(INDEX('Spectrum Functions'!AAA2:AAA1184,MATCH(1,INDEX(('Spectrum Functions'!AAB2:AAB1184=H7)*('Spectrum Functions'!AAC2:AAC1184=K7),),FALSE)),0) -> 0.25
C9: 3 | F9: ضريب اهميت ساختمان | H9: =CHOOSE(C9,F47,F48,F49,F50) -> ساختمان با اهميت متوسط | M9: =CHOOSE(C9,E47,E48,E49,E50) -> 1
F12: ضريب رفتار سازه
F13: سيستم سازه | H13: سيستم مقاوم در برابر نيروهاي جانبي
C14: =D56 -> 4 | F14: =CHOOSE(C14,U56,U57,U58,U59,U60) -> دوگانه یا ترکیبی | H14: =CHOOSE(D64,F56,F57,F58,F59,F60,F61,F62,F63) -> قاب خمشی بتن ارمه متوسط + دیوار برشی بتن آرمه متوسط | M14: =IFERROR(VALUE(E67),"") -> 6
H15: =IF(IFERROR(VALUE(B67),"")="","-",IFERROR(VALUE(B67),"")) -> 50 | J15: =IFERROR(VALUE(C67),"") -> 4.5 | L15: =IFERROR(VALUE(D67),"") -> 2.5
L16: =IF(ISNUMBER(SEARCH("[1]",H14)),"[1] فقط برای ساختمانهای ‹‹ با اهمیت متوسط ›› در مناطق لرزه خیزی 3 و 4 با حداکثر ارتفاع 15 متر مجاز می‌باشد.","") -> 
G17: =IF(ISNUMBER(SEARCH("[2]",H14)),"[2] در صورتی که زمین ساختگاه از نوع I و II و III باشد و ساختمان دارای نامنظمی پیچشی شدید در پلان نباشد و نیز در هر دو امتداد داری سیستم مقاوم جانبی در هر دو طرف مرکز جرم باشد میتوان ارتفاع مجاز از 50 متر به 75 متر افزایش داد.","") -> 
L18: =IF(ISNUMBER(SEARCH("[3]",H14)),"[3] چنانچه در تیرهای پیوند رفتار برشی حاکم باشد، ضریب رفتار برابر 7 و چنانچه رفتار خمشی حاکم باشد، این ضریب باید برابر 6 باشد.","") -> 
F19: ضريب بازتاب سازه B
F20: ارتفاع ساختمان از تراز پايه | I20: ='Static Quake X'!$E$20 -> 13 | J20: نوع زمين | K20: ='Static Quake X'!$G$20 -> III
C21: =IF(H21="خیر", 1,0.8) -> 1 | F21: سازه میانقاب دارد؟ | H21: ='Static Quake X'!$D$21 -> خیر | I21: نوع سيستم | K21: ='Static Quake X'!$G$21 -> سیستم دوگانه
G22: =IF(K20="I",0.1,IF(K20="II",0.1,IF(K20="III",0.15,IF(K20="IV",0.15,"")))) -> 0.15 | I22: زمان تناوب اصلی با استفاده از روابط تجربی | K22: =IF((K21="قاب ساده با بادبند همگرا"),"T=0.05xH^0.75=",IF(K21="قاب ساده با بادبند واگرا","T=0.08xH^0.75x("&C21&")=",IF(K21="قاب خمشی فولادی","T=0.08xH^0.75x("&C21&")=",IF(K21="قاب خمشی بتنی","T=0.05xH^0.9x("&C21&")=",IF(K21="سیستم دوگانه","T=0.05xH^0.75=","-"))))) -> T=0.05xH^0.75= | M22: =C23 -> 0.3423162521
C23: =IF((K21="قاب ساده با بادبند همگرا"),0.05*I20^0.75,IF(K21="قاب ساده با بادبند واگرا",0.08*I20^0.75*C21,IF(K21="قاب خمشی فولادی",0.08*I20^0.75*C21,IF(K21="قاب خمشی بتنی",0.05*I20^0.9*C21,IF(K21="سیستم دوگانه",0.05*I20^0.75,"-"))))) -> 0.3423162521 | G23: =IF(K20="I",0.4,IF(K20="II",0.5,IF(K20="III",0.7,IF(K20="IV",1,"")))) -> 0.7
G24: =IF(K20="I",1.5,IF(K20="II",1.5,IF(K20="III",1.75,IF(AND(K20="IV",M8<0.3),2.25,IF(AND(K20="IV",M8>0.25),1.75,""))))) -> 1.75 | J24: Min (تحلیلی، 1.25تجربی)= | M24: =MAX(MIN(M22*1.25,H26),M22) -> 0.4278953151
G25: =IF(K20="I",1,IF(K20="II",1,IF(K20="III",1.1,IF(AND(K20="IV",M8<0.3),1.3,IF(AND(K20="IV",M8>0.25),1.1,""))))) -> 1.1
F26: زمان تناوب نرم افزار | H26: ='Static Quake X'!$D$26 -> 0.79
F27: ضریب اصلاح طیف | H27: =IF(M8>0.25,IF(M24<G23,"N=1=",IF(M24>4,"N=1.7=","N=0.7/(4-TS)*(T-TS)+1=")),IF(M24<G23,"N=1=",IF(M24>4,"N=1.4=","N=0.4/(4-TS)*(T-TS)+1="))) -> N=1= | J27: =IF(M8>0.25,IF(M24<G23,1,IF(M24>4,1.7,0.7/(4-G23)*(M24-G23)+1)),IF(M24<G23,1,IF(M24>4,1.4,0.4/(4-G23)*(M24-G23)+1))) -> 1 | M27: =J27*J28 -> 2.75
F28: ضریب شکل طیف | H28: =IF(M24<G22,"B=S0+(S-S0+1)(T/T0)=",IF(M24>G23,"B1=(S+1)(Ts/T)=","B1=1+S=")) -> B1=1+S= | J28: =IF(M24<G22,G25+(G24-G25+1)*(M24/G22),IF(M24>G23,(G24+1)*(G23/M24),1+G24)) -> 2.75
H31: =0.12*M8*M9 -> 0.03 | J31: =IF(M24<0.5,"K=1=",IF(M24>2.5,"K=2=","K=0.5T+0.75=")) -> K=1= | L31: =IF(M24<0.5,1,IF(M24>2.5,2,0.5*M24+0.75)) -> 1
H32: =IF(M9<1.4,MAX(R35, M8*R34*M9/M14),K36) -> 0.1026371308 | L32: =IF(M9<1.4,IF(H26<0.5,1,IF(H26>2.5,2,0.5*H26+0.75)),L31) -> 1.145 | R32: =IF(M8>0.25,IF(H26<G23,1,IF(H26>4,1.7,0.7/(4-G23)*(H26-G23)+1)),IF(H26<G23,1,IF(H26>4,1.4,0.4/(4-G23)*(H26-G23)+1))) -> 1.010909091
R33: =IF(H26<G22,G25+(G24-G25+1)*(H26/G22),IF(H26>G23,(G24+1)*(G23/H26),1+G24)) -> 2.436708861
R34: =R32*R33 -> 2.463291139
R35: =0.12*M8*M9 -> 0.03
K36: =MAX(M8*M27*M9/M14,H31) -> 0.1145833333
E46: ضريب اهميت | F46: طبقه بندي ساختمان | I46: شتاب مبنا | J46: توصيف | R46: نوع زمين
E47: 1.4 | F47: ساختمان با اهميت خيلي زياد | I47: 0.35 | J47: پهنه با خطر نسبي خيلي زياد | M47: منطقه 1 | R47: I | T47: یک
E48: 1.2 | F48: ساختمان با اهميت زياد | I48: 0.3 | J48: پهنه با خطر نسبي زياد | M48: منطقه 2 | R48: II | T48: دو
E49: 1 | F49: ساختمان با اهميت متوسط | I49: 0.25 | J49: پهنه با خطر نسبي متوسط | M49: منطقه 3 | R49: III | T49: سه
E50: 0.8 | F50: ساختمان با اهميت كم | I50: 0.2 | J50: پهنه با خطر نسبي كم | M50: منطقه 4 | R50: IV | T50: چهار
H54: متر | L54: سیتم مقاوم در برابر نیروهای جانبی | R54: سیستم سازه
D55: 2
A56: =C56 -> 4 | B56: =C56 -> 4 | C56: =D56 -> 4 | D56: 4 | F56: =IF(D56=1,L56,IF(D56=2,L64,IF(D56=3,L72,IF(D56=4,L80,IF(D56=5,L88))))) -> قاب خمشی ویژه (فولادی یا بتنی) + دیوارهای برشی بتن آرمه ویژه | H56: 50 | I56: 5 | J56: 2.5 | K56: 5 | L56: دیوارهای برشی بتن آرمه ویژه | R56: دیوارهای باربر | U56: دیوارهای باربر
A57: =C57 -> 4 | B57: =C57 -> 4 | C57: 4 | D57: =D56 -> 4 | F57: =IF(D57=1,L57,IF(D57=2,L65,IF(D57=3,L73,IF(D57=4,L81,IF(D57=5,))))) -> قاب خمشی بتن ارمه متوسط + دیوار برشی بتن آرمه ویژه | H57: 50 | I57: 4 | J57: 2.5 | K57: 4 | L57: دیوارهای برشی بتن آرمه متوسط | U57: قاب ساختمانی
A58: 4 | B58: 4 | C58: 4 | D58: =D57 -> 4 | F58: =IF(D58=1,L58,IF(D58=2,L66,IF(D58=3,L74,IF(D58=4,L82,IF(D58=5,L90))))) -> قاب خمشی بتن ارمه متوسط + دیوار برشی بتن آرمه متوسط | H58: - | I58: 3.5 | J58: 2.5 | K58: 3.5 | L58: دیوارهای برشی بتن آرمه معمولی [1] | U58: قاب خمشی
A59: 4 | B59: 4 | C59: 4 | D59: 4 | F59: قاب خمشی فولادی متوسط + دیوار برشی بتن آرمه ویژه | H59: 15 | I59: 3 | J59: 2.5 | K59: 3 | L59: دیوارهای برشی با مصالح بنایی مسلح | U59: دوگانه یا ترکیبی
A60: 4 | B60: 4 | C60: 4 | D60: 4 | F60: قاب خمشی فولادی ویژه + مهاربند واگرای ویژه فولادی | H60: 15 | I60: 3.5 | J60: 2 | K60: 4 | L60: دیوارهای متشکل از قاب های سبک فولادی سرد نورد و صفحات پوشش فولادی | U60: کنسولی
A61: 4 | B61: 4 | C61: 4 | D61: 4 | F61: قاب خمشی فولادی متوسط + مهاربند واگرای ویژه فولادی | H61: 15 | I61: 4 | J61: 3 | K61: 5.5 | L61: دیوارهای متشکل از قاب های سبک فولادی سرد نورد و مهارهای تسمه ای فولادی
A62: 4 | B62: 4 | C62: 4 | D62: 4 | F62: =IF(D62=1,L62,IF(D62=2,L70,IF(D62=3,L78,IF(D62=4,L86,IF(D62=5,L94))))) -> قاب خمشی فولادی ویژه + مهاربند همگرای ویژه فولادی | H62: 10 | I62: 3 | J62: 2 | K62: 3 | L62: دیوارهای بتن پاششی سه بعدی
A63: 4 | B63: 4 | C63: 4 | D63: 4 | F63: =IF(D63=1,L63,IF(D63=2,L71,IF(D63=3,L79,IF(D63=4,L87,IF(D63=5,L95))))) -> قاب خمشی فولادی متوسط + مهاربند همگرای ویژه فولادی
A64: 3 | B64: 3 | C64: =D64 -> 3 | D64: 3 | H64: 50 | I64: 5 | J64: 2.5 | K64: 6 | L64: دیوارهای برشی بتن آرمه ویژه [2] | R64: قاب ساختمانی
H65: 35 | I65: 4 | J65: 2.5 | K65: 5 | L65: دیوارهای برشی بتن آرمه متوسط
H66: - | I66: 3 | J66: 2.5 | K66: 4 | L66: دیوارهای برشی بتن آرمه معمولی [1]
B67: =IF(AND(A56=1,A64=1),H56,IF(AND(A56=1,A64=2),H57,IF(AND(A56=1,A64=3),H58,IF(AND(A56=1,A64=4),H59,IF(AND(A56=1,A64=5),H60,IF(AND(A56=1,A64=6),H61,IF(AND(A56=1,A64=7),H62,IF(AND(A56=2,A64=1),H64,IF(AND(A56=2,A64=2),H65,IF(AND(A56=2,A64=3),H66,IF(AND(A56=2,A64=4),H67,IF(AND(A56=2,A64=5),H68,IF(AND(A56=2,A64=6),H69,IF(AND(A56=2,A64=7),H70,IF(AND(A56=2,A64=8),H71,IF(AND(A56=3,A64=1),H72,IF(AND(A56=3,A64=2),H73,IF(AND(A56=3,A64=3),H74,IF(AND(A56=3,A64=4),H75,IF(AND(A56=3,A64=5),H76,IF(AND(A56=3,A64=6),H77,IF(AND(A56=4,A64=1),H80,IF(AND(A56=4,A64=2),H81,IF(AND(A56=4,A64=3),H82,IF(AND(A56=4,A64=4),H83,IF(AND(A56=4,A64=5),H84,IF(AND(A56=4,A64=6),H85,IF(AND(A56=4,A64=7),H86,IF(AND(A56=4,A64=8),H87,IF(AND(A56=5,A64=1),H88)))))))))))))))))))))))))))))) -> 50 | C67: 4.5 | D67: =IF(AND(C56=1,C64=1),J56,IF(AND(C56=1,C64=2),J57,IF(AND(C56=1,C64=3),J58,IF(AND(C56=1,C64=4),J59,IF(AND(C56=1,C64=5),J60,IF(AND(C56=1,C64=6),J61,IF(AND(C56=1,C64=7),J62,IF(AND(C56=2,C64=1),J64,IF(AND(C56=2,C64=2),J65,IF(AND(C56=2,C64=3),J66,IF(AND(C56=2,C64=4),J67,IF(AND(C56=2,C64=5),J68,IF(AND(C56=2,C64=6),J69,IF(AND(C56=2,C64=7),J70,IF(AND(C56=2,C64=8),J71,IF(AND(C56=3,C64=1),J72,IF(AND(C56=3,C64=2),J73,IF(AND(C56=3,C64=3),J74,IF(AND(C56=3,C64=4),J75,IF(AND(C56=3,C64=5),J76,IF(AND(C56=3,C64=6),J77,IF(AND(C56=4,C64=1),J80,IF(AND(C56=4,C64=2),J81,IF(AND(C56=4,C64=3),J82,IF(AND(C56=4,C64=4),J83,IF(AND(C56=4,C64=5),J84,IF(AND(C56=4,C64=6),J85,IF(AND(C56=4,C64=7),J86,IF(AND(C56=4,C64=8),J87,IF(AND(C56=5,C64=1),J88)))))))))))))))))))))))))))))) -> 2.5 | E67: =IF(AND(D56=1,D64=1),K56,IF(AND(D56=1,D64=2),K57,IF(AND(D56=1,D64=3),K58,IF(AND(D56=1,D64=4),K59,IF(AND(D56=1,D64=5),K60,IF(AND(D56=1,D64=6),K61,IF(AND(D56=1,D64=7),K62,IF(AND(D56=2,D64=1),K64,IF(AND(D56=2,D64=2),K65,IF(AND(D56=2,D64=3),K66,IF(AND(D56=2,D64=4),K67,IF(AND(D56=2,D64=5),K68,IF(AND(D56=2,D64=6),K69,IF(AND(D56=2,D64=7),K70,IF(AND(D56=2,D64=8),K71,IF(AND(D56=3,D64=1),K72,IF(AND(D56=3,D64=2),K73,IF(AND(D56=3,D64=3),K74,IF(AND(D56=3,D64=4),K75,IF(AND(D56=3,D64=5),K76,IF(AND(D56=3,D64=6),K77,IF(AND(D56=4,D64=1),K80,IF(AND(D56=4,D64=2),K81,IF(AND(D56=4,D64=3),K82,IF(AND(D56=4,D64=4),K83,IF(AND(D56=4,D64=5),K84,IF(AND(D56=4,D64=6),K85,IF(AND(D56=4,D64=7),K86,IF(AND(D56=4,D64=8),K87,IF(AND(D56=5,D64=1),K88)))))))))))))))))))))))))))))) -> 6 | H67: 15 | I67: 2.5 | J67: 2.5 | K67: 3 | L67: دیوارهای برشی با مصالح بنایی مسلح
H68: 50 | I68: 4 | J68: 2 | K68: 7 | L68: مهاربندی واگرای ویژه فولادی [2] و [3]
H69: 50 | I69: 5 | J69: 2.5 | K69: 7 | L69: مهاربندی کمانش تاب
H70: 15 | I70: 3.5 | J70: 2 | K70: 3.5 | L70: مهاربندی همگرای معمولی فولادی
H71: 50 | I71: 5 | J71: 2 | K71: 5.5 | L71: مهاربندی همگرای ویژه فولادی [2]
H72: 200 | I72: 5.5 | J72: 3 | K72: 7.5 | L72: قاب خمشی بتن آرمه ویژه | R72: قاب خمشی
H73: 35 | I73: 4.5 | J73: 3 | K73: 5 | L73: قاب خمشی بتن آرمه متوسط
H74: - | I74: 2.5 | J74: 3 | K74: 3 | L74: قاب خمشی بتن آرمه معمولی [1]
H75: 200 | I75: 5.5 | J75: 3 | K75: 7.5 | L75: قاب خمشی فولادی ویژه
H76: 50 | I76: 4 | J76: 3 | K76: 5 | L76: قاب خمشی فولادی متوسط
H77: - | I77: 3 | J77: 3 | K77: 3.5 | L77: قاب خمشی فولادی معمولی [1]
H80: 200 | I80: 5.5 | J80: 2.5 | K80: 7.5 | L80: قاب خمشی ویژه (فولادی یا بتنی) + دیوارهای برشی بتن آرمه ویژه | R80: دوگانه یا ترکیبی
H81: 70 | I81: 5 | J81: 2.5 | K81: 6.5 | L81: قاب خمشی بتن ارمه متوسط + دیوار برشی بتن آرمه ویژه
H82: 50 | I82: 4.5 | J82: 2.5 | K82: 6 | L82: قاب خمشی بتن ارمه متوسط + دیوار برشی بتن آرمه متوسط
H83: 50 | I83: 4.5 | J83: 2.5 | K83: 6 | L83: قاب خمشی فولادی متوسط + دیوار برشی بتن آرمه ویژه
H84: 200 | I84: 4 | J84: 2.5 | K84: 7.5 | L84: قاب خمشی فولادی ویژه + مهاربند واگرای ویژه فولادی
H85: 70 | I85: 5 | J85: 2.5 | K85: 6 | L85: قاب خمشی فولادی متوسط + مهاربند واگرای ویژه فولادی
H86: 200 | I86: 5.5 | J86: 2.5 | K86: 7 | L86: قاب خمشی فولادی ویژه + مهاربند همگرای ویژه فولادی
H87: 70 | I87: 5 | J87: 2.5 | K87: 6 | L87: قاب خمشی فولادی متوسط + مهاربند همگرای ویژه فولادی
H88: 10 | I88: 2 | J88: 1.5 | K88: 2 | L88: سازه های فولادی یا بتن آرمه ویژه | R88: کنسولی

Sheet Static Quake Y
B3: =Y!F3 -> محاسبه ضريب زلزله در جهت Y
B6: =Y!F6 -> نسبت شتاب مبنای طرح به شتاب ثقل | D6: =Y!H6 -> استان | G6: =Y!K6 -> مرکز جمعیتی
D7: =Y!H7 -> اصفهان | G7: =Y!K7 -> اصفهان
D8: =Y!H8 -> پهنه با خطر نسبي متوسط | G8: =Y!K8 -> منطقه 3 | I8: =Y!M8 -> 0.25
B9: =Y!F9 -> ضريب اهميت ساختمان | D9: =Y!H9 -> ساختمان با اهميت متوسط | I9: =Y!M9 -> 1
B12: =Y!F12 -> ضريب رفتار سازه
B13: =Y!F13 -> سيستم سازه | D13: =Y!H13 -> سيستم مقاوم در برابر نيروهاي جانبي
B14: =Y!F14 -> دوگانه یا ترکیبی | D14: =Y!H14 -> قاب خمشی بتن ارمه متوسط + دیوار برشی بتن آرمه متوسط | I14: =Y!M14 -> 6
B15: =IF(AND(I8=0.35,I9=1.4),IF(ISNUMBER(SEARCH("ویژه",D14)),IF(E20<=D15,""," Hm < H"),"فقط ویژه"),IF(D15="-",IF(OR(AND(D15="-",OR(I8=0.3,I8=0.35),I9=1),AND(D15="-",OR(I9=1.2,I9=1.4))),"مجاز نیست",IF(E20<=15,""," Hm < H")),IF(E20<=D15,""," Hm < H"))) ->  | D15: =Y!H15 -> 50 | F15: =Y!J15 -> 4.5 | H15: =Y!L15 -> 2.5
H16: =Y!L16 -> 
C17: =Y!G17 -> 
H18: =Y!L18 -> 
B19: =Y!F19 -> ضريب بازتاب سازه B
B20: =Y!F20 -> ارتفاع ساختمان از تراز پايه | E20: 13 | F20: =Y!J20 -> نوع زمين | G20: III
B21: =Y!F21 -> سازه میانقاب دارد؟ | D21: بله | E21: =Y!I21 -> نوع سيستم | G21: سیستم دوگانه
C22: =Y!G22 -> 0.15 | E22: =Y!I22 -> زمان تناوب اصلی با استفاده از روابط تجربی | G22: =Y!K22 -> T=0.05xH^0.75= | I22: =Y!M22 -> 0.3423162521
C23: =Y!G23 -> 0.7
C24: =Y!G24 -> 1.75 | F24: =Y!J24 -> Min (تحلیلی، 1.25تجربی)= | I24: =Y!M24 -> 0.4278953151
C25: =Y!G25 -> 1.1
B26: =Y!F26 -> زمان تناوب نرم افزار | D26: 0.76
B27: =Y!F27 -> ضریب اصلاح طیف | D27: =Y!H27 -> N=1= | F27: =Y!J27 -> 1 | I27: =Y!M27 -> 2.75
B28: =Y!F28 -> ضریب شکل طیف | D28: =Y!H28 -> B1=1+S= | F28: =Y!J28 -> 2.75
D31: =Y!H31 -> 0.03 | F31: =Y!J31 -> K=1= | H31: =Y!L31 -> 1
D32: =Y!H32 -> 0.1063048246 | H32: =Y!L32 -> 1.13
G36: =Y!K36 -> 0.1145833333

Sheet Y (hidden)
F3: محاسبه ضريب زلزله در جهت Y
F6: نسبت شتاب مبنای طرح به شتاب ثقل | H6: استان | K6: مرکز جمعیتی
C7: 4 | H7: =INDEX('Spectrum Functions'!AAE2:AAE31,Y!C7,1) -> اصفهان | K7: =INDEX('Spectrum Functions'!AAF2:ABI90,C8,C7) -> اصفهان
C8: 7 | H8: =IFERROR(INDEX(J47:L50,MATCH(M8,I47:I50,0),1),"") -> پهنه با خطر نسبي متوسط | K8: =IFERROR(INDEX(M47:M50,MATCH(M8,I47:I50,0),1),"") -> منطقه 3 | M8: =IFERROR(INDEX('Spectrum Functions'!AAA2:AAA1184,MATCH(1,INDEX(('Spectrum Functions'!AAB2:AAB1184=H7)*('Spectrum Functions'!AAC2:AAC1184=K7),),FALSE)),0) -> 0.25
C9: 3 | F9: ضريب اهميت ساختمان | H9: =CHOOSE(C9,F47,F48,F49,F50) -> ساختمان با اهميت متوسط | M9: =CHOOSE(C9,E47,E48,E49,E50) -> 1
F12: ضريب رفتار سازه
F13: سيستم سازه | H13: سيستم مقاوم در برابر نيروهاي جانبي
C14: =D56 -> 4 | F14: =CHOOSE(C14,U56,U57,U58,U59,U60) -> دوگانه یا ترکیبی | H14: =CHOOSE(D64,F56,F57,F58,F59,F60,F61,F62,F63) -> قاب خمشی بتن ارمه متوسط + دیوار برشی بتن آرمه متوسط | M14: =IFERROR(VALUE(E67),"") -> 6
H15: =IF(IFERROR(VALUE(B67),"")="","-",IFERROR(VALUE(B67),"")) -> 50 | J15: =IFERROR(VALUE(C67),"") -> 4.5 | L15: =IFERROR(VALUE(D67),"") -> 2.5
L16: =IF(ISNUMBER(SEARCH("[1]",H14)),"[1] فقط برای ساختمانهای ‹‹ با اهمیت متوسط ›› در مناطق لرزه خیزی 3 و 4 با حداکثر ارتفاع 15 متر مجاز می‌باشد.","") -> 
G17: =IF(ISNUMBER(SEARCH("[2]",H14)),"[2] در صورتی که زمین ساختگاه از نوع I و II و III باشد و ساختمان دارای نامنظمی پیچشی شدید در پلان نباشد و نیز در هر دو امتداد داری سیستم مقاوم جانبی در هر دو طرف مرکز جرم باشد میتوان ارتفاع مجاز از 50 متر به 75 متر افزایش داد.","") -> 
L18: =IF(ISNUMBER(SEARCH("[3]",H14)),"[3] چنانچه در تیرهای پیوند رفتار برشی حاکم باشد، ضریب رفتار برابر 7 و چنانچه رفتار خمشی حاکم باشد، این ضریب باید برابر 6 باشد.","") -> 
F19: ضريب بازتاب سازه B
F20: ارتفاع ساختمان از تراز پايه | I20: ='Static Quake Y'!$E$20 -> 13 | J20: نوع زمين | K20: ='Static Quake Y'!$G$20 -> III
C21: =IF(H21="خیر", 1,0.8) -> 0.8 | F21: سازه میانقاب دارد؟ | H21: ='Static Quake Y'!$D$21 -> بله | I21: نوع سيستم | K21: ='Static Quake Y'!$G$21 -> سیستم دوگانه
G22: =IF(K20="I",0.1,IF(K20="II",0.1,IF(K20="III",0.15,IF(K20="IV",0.15,"")))) -> 0.15 | I22: زمان تناوب اصلی با استفاده از روابط تجربی | K22: =IF((K21="قاب ساده با بادبند همگرا"),"T=0.05xH^0.75=",IF(K21="قاب ساده با بادبند واگرا","T=0.08xH^0.75x("&C21&")=",IF(K21="قاب خمشی فولادی","T=0.08xH^0.75x("&C21&")=",IF(K21="قاب خمشی بتنی","T=0.05xH^0.9x("&C21&")=",IF(K21="سیستم دوگانه","T=0.05xH^0.75=","-"))))) -> T=0.05xH^0.75= | M22: =C23 -> 0.3423162521
C23: =IF((K21="قاب ساده با بادبند همگرا"),0.05*I20^0.75,IF(K21="قاب ساده با بادبند واگرا",0.08*I20^0.75*C21,IF(K21="قاب خمشی فولادی",0.08*I20^0.75*C21,IF(K21="قاب خمشی بتنی",0.05*I20^0.9*C21,IF(K21="سیستم دوگانه",0.05*I20^0.75,"-"))))) -> 0.3423162521 | G23: =IF(K20="I",0.4,IF(K20="II",0.5,IF(K20="III",0.7,IF(K20="IV",1,"")))) -> 0.7
G24: =IF(K20="I",1.5,IF(K20="II",1.5,IF(K20="III",1.75,IF(AND(K20="IV",M8<0.3),2.25,IF(AND(K20="IV",M8>0.25),1.75,""))))) -> 1.75 | J24: Min (تحلیلی، 1.25تجربی)= | M24: =MAX(MIN(M22*1.25,H26),M22) -> 0.4278953151
G25: =IF(K20="I",1,IF(K20="II",1,IF(K20="III",1.1,IF(AND(K20="IV",M8<0.3),1.3,IF(AND(K20="IV",M8>0.25),1.1,""))))) -> 1.1
F26: زمان تناوب نرم افزار | H26: ='Static Quake Y'!$D$26 -> 0.76
F27: ضریب اصلاح طیف | H27: =IF(M8>0.25,IF(M24<G23,"N=1=",IF(M24>4,"N=1.7=","N=0.7/(4-TS)*(T-TS)+1=")),IF(M24<G23,"N=1=",IF(M24>4,"N=1.4=","N=0.4/(4-TS)*(T-TS)+1="))) -> N=1= | J27: =IF(M8>0.25,IF(M24<G23,1,IF(M24>4,1.7,0.7/(4-G23)*(M24-G23)+1)),IF(M24<G23,1,IF(M24>4,1.4,0.4/(4-G23)*(M24-G23)+1))) -> 1 | M27: =J27*J28 -> 2.75
F28: ضریب شکل طیف | H28: =IF(M24<G22,"B=S0+(S-S0+1)(T/T0)=",IF(M24>G23,"B1=(S+1)(Ts/T)=","B1=1+S=")) -> B1=1+S= | J28: =IF(M24<G22,G25+(G24-G25+1)*(M24/G22),IF(M24>G23,(G24+1)*(G23/M24),1+G24)) -> 2.75
H31: =0.12*M8*M9 -> 0.03 | J31: =IF(M24<0.5,"K=1=",IF(M24>2.5,"K=2=","K=0.5T+0.75=")) -> K=1= | L31: =IF(M24<0.5,1,IF(M24>2.5,2,0.5*M24+0.75)) -> 1
H32: =IF(M9<1.4,MAX(R35, M8*R34*M9/M14),K36) -> 0.1063048246 | L32: =IF(M9<1.4,IF(H26<0.5,1,IF(H26>2.5,2,0.5*H26+0.75)),L31) -> 1.13 | R32: =IF(M8>0.25,IF(H26<G23,1,IF(H26>4,1.7,0.7/(4-G23)*(H26-G23)+1)),IF(H26<G23,1,IF(H26>4,1.4,0.4/(4-G23)*(H26-G23)+1))) -> 1.007272727
R33: =IF(H26<G22,G25+(G24-G25+1)*(H26/G22),IF(H26>G23,(G24+1)*(G23/H26),1+G24)) -> 2.532894737
R34: =R32*R33 -> 2.551315789
R35: =0.12*M8*M9 -> 0.03
K36: =MAX(M8*M27*M9/M14,H31) -> 0.1145833333
E46: ضريب اهميت | F46: طبقه بندي ساختمان | I46: شتاب مبنا | J46: توصيف | R46: نوع زمين
E47: 1.4 | F47: ساختمان با اهميت خيلي زياد | I47: 0.35 | J47: پهنه با خطر نسبي خيلي زياد | M47: منطقه 1 | R47: I | T47: یک
E48: 1.2 | F48: ساختمان با اهميت زياد | I48: 0.3 | J48: پهنه با خطر نسبي زياد | M48: منطقه 2 | R48: II | T48: دو
E49: 1 | F49: ساختمان با اهميت متوسط | I49: 0.25 | J49: پهنه با خطر نسبي متوسط | M49: منطقه 3 | R49: III | T49: سه
E50: 0.8 | F50: ساختمان با اهميت كم | I50: 0.2 | J50: پهنه با خطر نسبي كم | M50: منطقه 4 | R50: IV | T50: چهار
H54: متر | L54: سیتم مقاوم در برابر نیروهای جانبی | R54: سیستم سازه
D55: 2
A56: =C56 -> 4 | B56: =C56 -> 4 | C56: =D56 -> 4 | D56: 4 | F56: =IF(D56=1,L56,IF(D56=2,L64,IF(D56=3,L72,IF(D56=4,L80,IF(D56=5,L88))))) -> قاب خمشی ویژه (فولادی یا بتنی) + دیوارهای برشی بتن آرمه ویژه | H56: 50 | I56: 5 | J56: 2.5 | K56: 5 | L56: دیوارهای برشی بتن آرمه ویژه | R56: دیوارهای باربر | U56: دیوارهای باربر
A57: =C57 -> 4 | B57: =C57 -> 4 | C57: 4 | D57: =D56 -> 4 | F57: =IF(D57=1,L57,IF(D57=2,L65,IF(D57=3,L73,IF(D57=4,L81,IF(D57=5,))))) -> قاب خمشی بتن ارمه متوسط + دیوار برشی بتن آرمه ویژه | H57: 50 | I57: 4 | J57: 2.5 | K57: 4 | L57: دیوارهای برشی بتن آرمه متوسط | U57: قاب ساختمانی
A58: 4 | B58: 4 | C58: 4 | D58: =D57 -> 4 | F58: =IF(D58=1,L58,IF(D58=2,L66,IF(D58=3,L74,IF(D58=4,L82,IF(D58=5,L90))))) -> قاب خمشی بتن ارمه متوسط + دیوار برشی بتن آرمه متوسط | H58: - | I58: 3.5 | J58: 2.5 | K58: 3.5 | L58: دیوارهای برشی بتن آرمه معمولی [1] | U58: قاب خمشی
A59: 4 | B59: 4 | C59: 4 | D59: 4 | F59: قاب خمشی فولادی متوسط + دیوار برشی بتن آرمه ویژه | H59: 15 | I59: 3 | J59: 2.5 | K59: 3 | L59: دیوارهای برشی با مصالح بنایی مسلح | U59: دوگانه یا ترکیبی
A60: 4 | B60: 4 | C60: 4 | D60: 4 | F60: قاب خمشی فولادی ویژه + مهاربند واگرای ویژه فولادی | H60: 15 | I60: 3.5 | J60: 2 | K60: 4 | L60: دیوارهای متشکل از قاب های سبک فولادی سرد نورد و صفحات پوشش فولادی | U60: کنسولی
A61: 4 | B61: 4 | C61: 4 | D61: 4 | F61: قاب خمشی فولادی متوسط + مهاربند واگرای ویژه فولادی | H61: 15 | I61: 4 | J61: 3 | K61: 5.5 | L61: دیوارهای متشکل از قاب های سبک فولادی سرد نورد و مهارهای تسمه ای فولادی
A62: 4 | B62: 4 | C62: 4 | D62: 4 | F62: =IF(D62=1,L62,IF(D62=2,L70,IF(D62=3,L78,IF(D62=4,L86,IF(D62=5,L94))))) -> قاب خمشی فولادی ویژه + مهاربند همگرای ویژه فولادی | H62: 10 | I62: 3 | J62: 2 | K62: 3 | L62: دیوارهای بتن پاششی سه بعدی
A63: 4 | B63: 4 | C63: 4 | D63: 4 | F63: =IF(D63=1,L63,IF(D63=2,L71,IF(D63=3,L79,IF(D63=4,L87,IF(D63=5,L95))))) -> قاب خمشی فولادی متوسط + مهاربند همگرای ویژه فولادی
A64: 3 | B64: 3 | C64: =D64 -> 3 | D64: 3 | H64: 50 | I64: 5 | J64: 2.5 | K64: 6 | L64: دیوارهای برشی بتن آرمه ویژه [2] | R64: قاب ساختمانی
H65: 35 | I65: 4 | J65: 2.5 | K65: 5 | L65: دیوارهای برشی بتن آرمه متوسط
H66: - | I66: 3 | J66: 2.5 | K66: 4 | L66: دیوارهای برشی بتن آرمه معمولی [1]
B67: =IF(AND(A56=1,A64=1),H56,IF(AND(A56=1,A64=2),H57,IF(AND(A56=1,A64=3),H58,IF(AND(A56=1,A64=4),H59,IF(AND(A56=1,A64=5),H60,IF(AND(A56=1,A64=6),H61,IF(AND(A56=1,A64=7),H62,IF(AND(A56=2,A64=1),H64,IF(AND(A56=2,A64=2),H65,IF(AND(A56=2,A64=3),H66,IF(AND(A56=2,A64=4),H67,IF(AND(A56=2,A64=5),H68,IF(AND(A56=2,A64=6),H69,IF(AND(A56=2,A64=7),H70,IF(AND(A56=2,A64=8),H71,IF(AND(A56=3,A64=1),H72,IF(AND(A56=3,A64=2),H73,IF(AND(A56=3,A64=3),H74,IF(AND(A56=3,A64=4),H75,IF(AND(A56=3,A64=5),H76,IF(AND(A56=3,A64=6),H77,IF(AND(A56=4,A64=1),H80,IF(AND(A56=4,A64=2),H81,IF(AND(A56=4,A64=3),H82,IF(AND(A56=4,A64=4),H83,IF(AND(A56=4,A64=5),H84,IF(AND(A56=4,A64=6),H85,IF(AND(A56=4,A64=7),H86,IF(AND(A56=4,A64=8),H87,IF(AND(A56=5,A64=1),H88)))))))))))))))))))))))))))))) -> 50 | C67: 4.5 | D67: =IF(AND(C56=1,C64=1),J56,IF(AND(C56=1,C64=2),J57,IF(AND(C56=1,C64=3),J58,IF(AND(C56=1,C64=4),J59,IF(AND(C56=1,C64=5),J60,IF(AND(C56=1,C64=6),J61,IF(AND(C56=1,C64=7),J62,IF(AND(C56=2,C64=1),J64,IF(AND(C56=2,C64=2),J65,IF(AND(C56=2,C64=3),J66,IF(AND(C56=2,C64=4),J67,IF(AND(C56=2,C64=5),J68,IF(AND(C56=2,C64=6),J69,IF(AND(C56=2,C64=7),J70,IF(AND(C56=2,C64=8),J71,IF(AND(C56=3,C64=1),J72,IF(AND(C56=3,C64=2),J73,IF(AND(C56=3,C64=3),J74,IF(AND(C56=3,C64=4),J75,IF(AND(C56=3,C64=5),J76,IF(AND(C56=3,C64=6),J77,IF(AND(C56=4,C64=1),J80,IF(AND(C56=4,C64=2),J81,IF(AND(C56=4,C64=3),J82,IF(AND(C56=4,C64=4),J83,IF(AND(C56=4,C64=5),J84,IF(AND(C56=4,C64=6),J85,IF(AND(C56=4,C64=7),J86,IF(AND(C56=4,C64=8),J87,IF(AND(C56=5,C64=1),J88)))))))))))))))))))))))))))))) -> 2.5 | E67: =IF(AND(D56=1,D64=1),K56,IF(AND(D56=1,D64=2),K57,IF(AND(D56=1,D64=3),K58,IF(AND(D56=1,D64=4),K59,IF(AND(D56=1,D64=5),K60,IF(AND(D56=1,D64=6),K61,IF(AND(D56=1,D64=7),K62,IF(AND(D56=2,D64=1),K64,IF(AND(D56=2,D64=2),K65,IF(AND(D56=2,D64=3),K66,IF(AND(D56=2,D64=4),K67,IF(AND(D56=2,D64=5),K68,IF(AND(D56=2,D64=6),K69,IF(AND(D56=2,D64=7),K70,IF(AND(D56=2,D64=8),K71,IF(AND(D56=3,D64=1),K72,IF(AND(D56=3,D64=2),K73,IF(AND(D56=3,D64=3),K74,IF(AND(D56=3,D64=4),K75,IF(AND(D56=3,D64=5),K76,IF(AND(D56=3,D64=6),K77,IF(AND(D56=4,D64=1),K80,IF(AND(D56=4,D64=2),K81,IF(AND(D56=4,D64=3),K82,IF(AND(D56=4,D64=4),K83,IF(AND(D56=4,D64=5),K84,IF(AND(D56=4,D64=6),K85,IF(AND(D56=4,D64=7),K86,IF(AND(D56=4,D64=8),K87,IF(AND(D56=5,D64=1),K88)))))))))))))))))))))))))))))) -> 6 | H67: 15 | I67: 2.5 | J67: 2.5 | K67: 3 | L67: دیوارهای برشی با مصالح بنایی مسلح
H68: 50 | I68: 4 | J68: 2 | K68: 7 | L68: مهاربندی واگرای ویژه فولادی [2] و [3]
H69: 50 | I69: 5 | J69: 2.5 | K69: 7 | L69: مهاربندی کمانش تاب
H70: 15 | I70: 3.5 | J70: 2 | K70: 3.5 | L70: مهاربندی همگرای معمولی فولادی
H71: 50 | I71: 5 | J71: 2 | K71: 5.5 | L71: مهاربندی همگرای ویژه فولادی [2]
H72: 200 | I72: 5.5 | J72: 3 | K72: 7.5 | L72: قاب خمشی بتن آرمه ویژه | R72: قاب خمشی
H73: 35 | I73: 4.5 | J73: 3 | K73: 5 | L73: قاب خمشی بتن آرمه متوسط
H74: - | I74: 2.5 | J74: 3 | K74: 3 | L74: قاب خمشی بتن آرمه معمولی [1]
H75: 200 | I75: 5.5 | J75: 3 | K75: 7.5 | L75: قاب خمشی فولادی ویژه
H76: 50 | I76: 4 | J76: 3 | K76: 5 | L76: قاب خمشی فولادی متوسط
H77: - | I77: 3 | J77: 3 | K77: 3.5 | L77: قاب خمشی فولادی معمولی [1]
H80: 200 | I80: 5.5 | J80: 2.5 | K80: 7.5 | L80: قاب خمشی ویژه (فولادی یا بتنی) + دیوارهای برشی بتن آرمه ویژه | R80: دوگانه یا ترکیبی
H81: 70 | I81: 5 | J81: 2.5 | K81: 6.5 | L81: قاب خمشی بتن ارمه متوسط + دیوار برشی بتن آرمه ویژه
H82: 50 | I82: 4.5 | J82: 2.5 | K82: 6 | L82: قاب خمشی بتن ارمه متوسط + دیوار برشی بتن آرمه متوسط
H83: 50 | I83: 4.5 | J83: 2.5 | K83: 6 | L83: قاب خمشی فولادی متوسط + دیوار برشی بتن آرمه ویژه
H84: 200 | I84: 4 | J84: 2.5 | K84: 7.5 | L84: قاب خمشی فولادی ویژه + مهاربند واگرای ویژه فولادی
H85: 70 | I85: 5 | J85: 2.5 | K85: 6 | L85: قاب خمشی فولادی متوسط + مهاربند واگرای ویژه فولادی
H86: 200 | I86: 5.5 | J86: 2.5 | K86: 7 | L86: قاب خمشی فولادی ویژه + مهاربند همگرای ویژه فولادی
H87: 70 | I87: 5 | J87: 2.5 | K87: 6 | L87: قاب خمشی فولادی متوسط + مهاربند همگرای ویژه فولادی
H88: 10 | I88: 2 | J88: 1.5 | K88: 2 | L88: سازه های فولادی یا بتن آرمه ویژه | R88: کنسولی

Sheet Spectrum Functions (hidden)
AAA1: شتاب مبنا | AAB1: استان | AAC1: مرکز جمعیتی | AAD1: ردیف | AAE1: استان | AAF1: آذربایجان شرقی | AAG1: آذربایجان غربی | AAH1: اردبیل | AAI1: اصفهان | AAJ1: ایلام | AAK1: بوشهر | AAL1: تهران | AAM1: چهارمحال و بختیاری | AAN1: خراسان جنوبی | AAO1: خراسان رضوی | AAP1: خراسان شمالی | AAQ1: خوزستان | AAR1: زنجان | AAS1: سمنان | AAT1: سیستان و بلوچستان | AAU1: فارس | AAV1: قزوین | AAW1: قم | AAX1: کردستان | AAY1: کرمان | AAZ1: کرمانشاه | ABA1: کهگیلویه و بویراحمد | ABB1: گلستان | ABC1: گیلان | ABD1: لرستان | ABE1: مازندران | ABF1: مرکزی | ABG1: هرمزگان | ABH1: همدان | ABI1: یزد | XCW1: T (Sec) | XCX1: I | XCY1: II | XCZ1: III | XDA1: IV | XDC1: T (Sec) | XDD1: I | XDE1: II | XDF1: III | XDG1: IV | XDI1: T (Sec) | XDJ1: I | XDK1: II | XDL1: III | XDM1: IV | XDS1: T (Sec) | XDT1: 1.4709
B2: نسبت شتاب مبنا | C2: =INDEX('Spectrum Functions'!AAE2:AAE31,W4,1) -> گیلان | D2: =INDEX('Spectrum Functions'!AAF2:ABI90,W5,W4) -> منجیل | E2: =IF(F2=0.2,"منطقه 4",IF(F2=0.25,"منطقه 3",IF(F2=0.3,"منطقه 2","منطقه 1"))) -> منطقه 1 | F2: =IFERROR(INDEX('Spectrum Functions'!AAA2:AAA1184,MATCH(1,INDEX(('Spectrum Functions'!AAB2:AAB1184=C2)*('Spectrum Functions'!AAC2:AAC1184=D2),),FALSE)),"") -> 0.35 | W2: =IF(OR(F2=0.2,F2=0.25),1,2) -> 2 | Z2: ضریب بازتاب طیف طرح برای انواع زمین ها با خطر زیاد و خیلی زیاد | AG2: AB | AAA2: 0.3 | AAB2: اردبیل | AAC2: آبی بیگلو | AAD2: 12 | AAE2: آذربایجان شرقی | AAF2: آذرشهر | AAG2: آواجیق | AAH2: آبی بیگلو | AAI2: ابریشم | AAJ2: آبدانان | AAK2: آب پخش | AAL2: آبسرد | AAM2: آورگان | AAN2: اسدیه | AAO2: امام تقی | AAP2: آشخانه | AAQ2: آبادان | AAR2: آب بر | AAS2: آستانه | AAT2: ایرانشهر | AAU2: آباده | AAV2: آبرم | AAW2: جعفریه | AAX2: آرمرده | AAY2: ابارق | AAZ2: آران | ABA2: آرو | ABB2: آزادشهر | ABC2: آستارا | ABD2: ازنا | ABE2: آلاشت | ABF2: آشتیان | ABG2: ابوموسی (بوم سوز) | ABH2: آجین | ABI2: ابرکوه | XCW2: 0 | XCX2: 1 | XCY2: 1 | XCZ2: 1.1 | XDA2: 1.3 | XDC2: 0 | XDD2: 1 | XDE2: 1 | XDF2: 1.1 | XDG2: 1.1 | XDI2: 0 | XDJ2: =IF($W$2=2,XDD2,XCX2) -> 1 | XDK2: =IF($W$2=2,XDE2,XCY2) -> 1 | XDL2: 1.1 | XDM2: 1.1 | XDS2: 0 | XDT2: 1.61799
B3: نوع زمین | C3: =CHOOSE(W3,X!T47,X!T48,X!T49,X!T50) -> دو | F3: =CHOOSE(W3,X!R47,X!R48,X!R49,X!R50) -> II | W3: 2 | Z3: ضریب بازتاب طیف طرح برای انواع زمین ها با خطر نسبی کم و متوسط | AG3: B / Rx | AAA3: 0.3 | AAB3: اردبیل | AAC3: اردبیل | AAD3: 51 | AAE3: آذربایجان غربی | AAF3: آمند | AAG3: ارومیه | AAH3: اردبیل | AAI3: ابوزید آباد | AAJ3: آسمان آباد | AAK3: آباد | AAL3: ارجمند | AAM3: اردل | AAN3: اسلامیه | AAO3: امام قلی | AAP3: اسفراین | AAQ3: آغاجاری | AAR3: ابهر | AAS3: ابر | AAT3: بافتان | AAU3: آباده طشک | AAV3: آبگرم | AAW3: سلفچگان | AAX3: بانه | AAY3: اختیارآباد | AAZ3: ارمنیجان | ABA3: باباکلان | ABB3: آق بند | ABC3: آستانه اشرفیه | ABD3: اشترینان | ABE3: آمل | ABF3: اراک | ABG3: احمدی | ABH3: ازندریان | ABI3: اردکان | XCW3: 0.02 | XCX3: 1.3 | XCY3: 1.3 | XCZ3: 1.32 | XDA3: 1.56 | XDC3: 0.02 | XDD3: 1.3 | XDE3: 1.3 | XDF3: 1.32 | XDG3: 1.32 | XDI3: 0.02 | XDJ3: =IF($W$2=2,XDD3,XCX3) -> 1.3 | XDK3: 1.3 | XDL3: 1.32 | XDM3: 1.32 | XDS3: 0.02 | XDT3: 1.941588
... 4 more rows

Sheet Spectrum
XDS1: T (Sec) | XDT1: B
B2: ='Spectrum Functions'!B2 -> نسبت شتاب مبنا | C2: ='Spectrum Functions'!C2 -> گیلان | D2: ='Spectrum Functions'!D2 -> منجیل | E2: ='Spectrum Functions'!E2 -> منطقه 1 | F2: ='Spectrum Functions'!F2 -> 0.35 | XDS2: 0 | XDT2: 1.1
B3: ='Spectrum Functions'!B3 -> نوع زمین | C3: ='Spectrum Functions'!C3 -> دو | F3: ='Spectrum Functions'!F3 -> II | Z3: AB | AA3: I | XDS3: 0.02 | XDT3: 1.32
... 4 more rows
